{"text_format":"3","workbook":"xlsx","n_sheets":4,"sheets":["Flux de numerar","Venit lunar","Cheltuieli lunare","DATE DIAGRAMĂ"],"not_rendered":{"charts":1,"defined_names":10},"read":"whole","date_system":"1900"}

{"sheet":"Flux de numerar","index":0,"n_rows":9,"n_cols":5,"rows_kept":9}
[null,"Nume"]
[null,"Buget de  familie"]
[null,{"$f":"TEXT(TODAY(),\"mmmm\")","v":"Ianuarie"}]
[null,{"$f":"YEAR(TODAY())","v":2017}]
[null,"Notă: Tabelul Flux de numerar este calculat automat pe baza intrărilor din foile de lucru Venit lunar și Cheltuieli lunare"]
[null,"Flux de numerar","Proiectat","Real","Diferența"]
[null,"Total venit",{"$f":"Venit[[#Totals],[Proiectat]]","v":{"v":5700,"d":"5,700"}},{"$f":"Venit[[#Totals],[Real]]","v":{"v":5500,"d":"5,500"}},{"$f":"Venit[[#Totals],[Diferența]]","v":-200}]
[null,"Total cheltuieli",{"$f":"Cheltuială[[#Totals],[Proiectat]]","v":{"v":3603,"d":"3,603"}},{"$f":"Cheltuială[[#Totals],[Real]]","v":{"v":3655,"d":"3,655"}},{"$f":"Cheltuială[[#Totals],[Diferența]]","v":-52}]
[null,"Total numerar",{"$f":"C7-C8","v":{"v":2097,"d":"2,097"}},{"$f":"D7-D8","v":{"v":1845,"d":"1,845"}},{"$f":"SUBTOTAL(109,Flux_de_numerar[Diferența])","v":-252}]

{"sheet":"Venit lunar","index":1,"n_rows":9,"n_cols":5,"rows_kept":9}
[null,{"$f":"Nume","v":"Nume"}]
[null,{"$f":"TitluBuget","v":"Buget de  familie"}]
[null,{"$f":"Luna","v":"Ianuarie"}]
[null,{"$f":"Anul","v":2017}]
[null,"Venit lunar","Proiectat","Real","Diferența"]
[null,"Venit 1",{"v":4000,"d":"4,000"},{"v":4000,"d":"4,000"},{"$f":"Venit[[#This Row],[Real]]-Venit[[#This Row],[Proiectat]]","v":0}]
[null,"Venit 2",{"v":1400,"d":"1,400"},{"v":1500,"d":"1,500"},{"$f":"Venit[[#This Row],[Real]]-Venit[[#This Row],[Proiectat]]","v":100}]
[null,"Alte venituri",300,0,{"$f":"Venit[[#This Row],[Real]]-Venit[[#This Row],[Proiectat]]","v":-300}]
[null,"Total venit",{"$f":"SUBTOTAL(109,Venit[Proiectat])","v":{"v":5700,"d":"5,700"}},{"$f":"SUBTOTAL(109,Venit[Real])","v":{"v":5500,"d":"5,500"}},{"$f":"SUBTOTAL(109,Venit[Diferența])","v":-200}]

{"sheet":"Cheltuieli lunare","index":2,"n_rows":26,"n_cols":5,"rows_kept":26}
[null,{"$f":"Nume","v":"Nume"}]
[null,{"$f":"TitluBuget","v":"Buget de  familie"}]
[null,{"$f":"Luna","v":"Ianuarie"}]
[null,{"$f":"Anul","v":2017}]
[null,"Cheltuieli lunare","Proiectat","Real","Diferența"]
[null,"Locuință",{"v":1500,"d":"1,500"},{"v":1500,"d":"1,500"},{"$f":"Cheltuială[[#This Row],[Proiectat]]-Cheltuială[[#This Row],[Real]]","v":0}]
[null,"Alimente",250,280,{"$f":"Cheltuială[[#This Row],[Proiectat]]-Cheltuială[[#This Row],[Real]]","v":-30}]
[null,"Telefon",38,38,{"$f":"Cheltuială[[#This Row],[Proiectat]]-Cheltuială[[#This Row],[Real]]","v":0}]
[null,"Curent electric/gaze",65,78,{"$f":"Cheltuială[[#This Row],[Proiectat]]-Cheltuială[[#This Row],[Real]]","v":-13}]
[null,"Apă/canalizare/gunoi",25,21,{"$f":"Cheltuială[[#This Row],[Proiectat]]-Cheltuială[[#This Row],[Real]]","v":4}]
[null,"Cablu TV",75,83,{"$f":"Cheltuială[[#This Row],[Proiectat]]-Cheltuială[[#This Row],[Real]]","v":-8}]
[null,"Internet",60,60,{"$f":"Cheltuială[[#This Row],[Proiectat]]-Cheltuială[[#This Row],[Real]]","v":0}]
[null,"Întreținere/reparații",0,60,{"$f":"Cheltuială[[#This Row],[Proiectat]]-Cheltuială[[#This Row],[Real]]","v":-60}]
[null,"Îngrijirea copiilor",180,150,{"$f":"Cheltuială[[#This Row],[Proiectat]]-Cheltuială[[#This Row],[Real]]","v":30}]
[null,"Taxe școlare",250,250,{"$f":"Cheltuială[[#This Row],[Proiectat]]-Cheltuială[[#This Row],[Real]]","v":0}]
[null,"Animale de casă",75,80,{"$f":"Cheltuială[[#This Row],[Proiectat]]-Cheltuială[[#This Row],[Real]]","v":-5}]
[null,"Transport",280,260,{"$f":"Cheltuială[[#This Row],[Proiectat]]-Cheltuială[[#This Row],[Real]]","v":20}]
[null,"Îngrijire personală",75,65,{"$f":"Cheltuială[[#This Row],[Proiectat]]-Cheltuială[[#This Row],[Real]]","v":10}]
[null,"Asigurare",255,255,{"$f":"Cheltuială[[#This Row],[Proiectat]]-Cheltuială[[#This Row],[Real]]","v":0}]
[null,"Carduri de credit",100,100,{"$f":"Cheltuială[[#This Row],[Proiectat]]-Cheltuială[[#This Row],[Real]]","v":0}]
[null,"Împrumuturi",0,0,{"$f":"Cheltuială[[#This Row],[Proiectat]]-Cheltuială[[#This Row],[Real]]","v":0}]
[null,"Taxe",0,0,{"$f":"Cheltuială[[#This Row],[Proiectat]]-Cheltuială[[#This Row],[Real]]","v":0}]
[null,"Cadouri/caritate",150,150,{"$f":"Cheltuială[[#This Row],[Proiectat]]-Cheltuială[[#This Row],[Real]]","v":0}]
[null,"Economii",225,225,{"$f":"Cheltuială[[#This Row],[Proiectat]]-Cheltuială[[#This Row],[Real]]","v":0}]
[null,"Altele",0,0,{"$f":"Cheltuială[[#This Row],[Proiectat]]-Cheltuială[[#This Row],[Real]]","v":0}]
[null,"Total",{"$f":"SUBTOTAL(109,Cheltuială[Proiectat])","v":{"v":3603,"d":"3,603"}},{"$f":"SUBTOTAL(109,Cheltuială[Real])","v":{"v":3655,"d":"3,655"}},{"$f":"SUBTOTAL(109,Cheltuială[Diferența])","v":-52}]

{"sheet":"DATE DIAGRAMĂ","index":3,"n_rows":6,"n_cols":4,"rows_kept":6,"hidden":true}
[null,"DATE DIAGRAMĂ"]
[]
[null,null,"Proiectat","Real"]
[null,"Flux de numerar",{"$f":"Flux_de_numerar[[#Totals],[Proiectat]]","v":2097},{"$f":"Flux_de_numerar[[#Totals],[Real]]","v":1845}]
[null,"Venit lunar",{"$f":"Venit[[#Totals],[Proiectat]]","v":5700},{"$f":"Venit[[#Totals],[Real]]","v":5500}]
[null,"Cheltuieli lunare",{"$f":"Cheltuială[[#Totals],[Proiectat]]","v":3603},{"$f":"Cheltuială[[#Totals],[Real]]","v":3655}]